Cogmind - Beta 16 @@@ ROGUE MODE // 2026.02.04 @ 17:37:35 Player: [HK-CAR] Result: Destroyed by G-47 Trooper with Particle Gun Performance ------------- Evolutions (0) 0 Regions Visited (1) 200 Robots Destroyed (8) 40 Value Destroyed (164) 164 Prototype IDs (0) 0 Alien Tech Used (0) 0 Bonus (0) 0 TOTAL SCORE: 404 Bonus ------- None Cogmind --------- Core Integrity 0/250 Matter 300/300 Energy 43/100 System Corruption 4% Temperature Hot (250) Movement Core (100) Ox1 Location -10/Materials Parts ------- > --- POWER (1) -------- (None) > --- PROPULSION (2) --- (None) > --- UTILITY (2) ------ Small Storage Unit > --- WEAPON (2) ------- (None) > --- INVENTORY (8) ---- Light Ion Engine Peak State ------------ > --- POWER ------------ Light Ion Engine > --- PROPULSION ------- Aluminum Leg Aluminum Leg > --- UTILITY ---------- Small Storage Unit > --- WEAPON ----------- EM Pulse Gun Medium Laser > --- INVENTORY -------- Light Ion Engine Light Assault Rifle Mining Laser [Rating: 6] Favorites ----------- Power Light Ion Engine Engine Light Ion Engine Propulsion Aluminum Leg Leg Aluminum Leg Utility Small Storage Unit Storage Small Storage Unit Weapon Medium Laser Energy Gun Medium Laser Ballistic Gun Light Assault Rifle Special Weapon Mining Laser Build | -11 -10 ------- Run | Yrd Mat Slots Evolved . | . . Power . | . . Propulsion . | . . Utility . | . . Weapon . | . . Parts Attached 8 | 5 3 Power 1 | 1 . Engine 1 | 1 . Core . | . . Reactor . | . . Propulsion 2 | 2 . Treads . | . . Leg 2 | 2 . Wheel . | . . Hover . | . . Flight . | . . Utility 1 | 1 . Device . | . . Storage 1 | 1 . Processor . | . . Hackware . | . . Protection . | . . Artifact . | . . Weapon 4 | 1 3 Energy Gun 2 | 1 1 Energy Cannon . | . . Ballistic Gun 1 | . 1 Ballistic Cannon . | . . Launcher . | . . Special Weapon 1 | . 1 Impact Weapon . | . . Slashing Weapon . | . . Piercing Weapon . | . . Special Melee Weapon . | . . Unidentified Prototypes . | . . Parts Lost 7 | . 7 Power 1 | . 1 Propulsion 2 | . 2 Utility . | . . Weapon 4 | . 4 Highest Loss Streak 7 | . 7 To Critical Strikes . | . . Average Backups 2 | 2 3 Power . | . 1 Propulsion . | . . Utility . | . . Weapon 1 | 1 2 Tool/Special . | . . Unused Backups 1 | . 1 Power 1 | . 1 Propulsion . | . . Utility . | . . Weapon . | . . Tool/Special . | . . Average Slot Usage (%) 70 | . 70 Engine 11 | . 11 Leg 22 | . 22 Storage 14 | . 14 Energy Gun 17 | . 17 Ballistic Gun 4 | . 4 Peak Build Rating 6 | 5 6 Average Rating 4 | 4 4 On Entrance 2 | . 5 Avg Prop Armor Cover (%) . | . . Naked Turns . | . . Heaviest Build 12 | 10 12 Greatest Support 20 | 20 20 Greatest Overweight (x) 1 | . 1 Average Overweight (x) . | . . Largest Inventory Capacity 8 | 8 8 Average Capacity 7 | 7 8 Most Carried 4 | 4 4 Average Carried 2 | 2 3 Final Capacity 8 | 8 8 Final Carried 4 | 4 1 Class Distribution -------------------- 100% | Mutant Dominant Class ---------------- Mutant | -10/Materials Resources | -11 -10 ----------- Run | Yrd Mat Matter Collected 271 | 247 24 Remotely . | . . Salvage Created 324 | 146 178 Parts 14 | 9 5 Haulers Intercepted . | . . Recyclers Shooed . | . . Parts Field Recycled . | . . Retrieved Matter . | . . Parts Self-Destructed . | . . Prevented . | . . Parts Restored . | . . Kills | -11 -10 ------- Run | Yrd Mat Combat Hostiles Destroyed 4 | . 4 Guns 4 | . 4 Classes Destroyed 4 | 3 1 Worker 2 | 2 . Tunneler 1 | 1 . Recycler 1 | 1 . Grunt 4 | . 4 Best Kill Streak 4 | 4 4 Combat Bots Only 4 | . 4 Max Kills in Single Turn 1 | 1 1 Gunslinging . | . . Exploded . | . . Melee . | . . Uniques/NPCs Destroyed . | . . Combat | -11 -10 -------- Run | Yrd Mat Hostile Shots Fired 75 | . 75 Missed 13 | . 13 Hits 62 | . 62 Projectile 62 | . 62 Critical Strikes 5 | . 5 Damage Taken 847 | . 847 Core 257 | . 257 Absorbed by Shields . | . . Core Remaining (%) 100 | 100 . Volleys Fired 58 | 31 27 Largest 2 | 1 2 Hottest 100 | 50 100 Shots Fired 68 | 31 37 Gun 67 | 31 36 Cannon . | . . Launcher . | . . Special 1 | . 1 Kinetic 14 | . 14 Thermal 42 | 31 11 Explosive . | . . Electromagnetic 12 | . 12 Robot Hit Streak 9 | 5 9 Robot Miss Streak 3 | 2 3 Penetration Max . | . . Secondary Targets 1 | . 1 Max Gunslinging Chain 1 | . 1 Shots Hit Robots 48 | 21 27 Core Hits 13 | 5 8 Critical Kills 1 | . 1 Critical Parts Destroyed . | . . Critical Strikes 5 | 1 4 Burn 4 | 1 3 Destroy 1 | . 1 Melee Attacks . | . . Impact . | . . Slashing . | . . Piercing . | . . Sneak Attacks . | . . Combat Hostiles . | . . Follow-up Attacks . | . . Damage Inflicted 608 | 298 310 Guns 570 | 286 284 Cannons . | . . Explosions . | . . Melee . | . . Ramming 14 | 12 2 Kinetic 90 | . 90 Thermal 399 | 286 113 Explosive . | . . Electromagnetic 105 | . 105 Impact . | . . Slashing . | . . Piercing . | . . Highest Corruption 4 | . 4 Average Corruption 2 | . 2 Corruption Purged . | . . Corruption Blocked . | . . Overload Shots . | . . Overflow Damage . | . . Projectiles . | . . Explosions . | . . Melee . | . . Knockbacks . | . . Impact . | . . Kinetic . | . . Secondary . | . . Self-Inflicted Damage . | . . Shots . | . . Rammed 4 | . 4 Targets Rammed 5 | 1 4 Kicked 1 | 1 . Crushed . | . . Highest Temperature 360 | 110 360 Average Temperature 121 | 51 199 Received Heat Transfer 588 | . 588 Effects 2 | . 2 Energy Bleed 1 | . 1 Interference 1 | . 1 Siege Activations . | . . Martial Activations . | . . Shielding Activations . | . . Robots Disrupted . | . . Combat Hostiles . | . . Robots Corrupted . | . . Combat Hostiles . | . . Parts Fried . | . . Impact Corruptions . | . . Robots Melted . | . . Combat Hostiles . | . . Parts Melted . | . . Heat Transferred 1456 | 925 531 Parts Sabotaged . | . . Parts Stolen . | . . Parts Stripped . | . . Power Chain Reactions . | . . Alert | -11 -10 ------- Run | Yrd Mat Maximum Alert Level . | . . Low Security (%) 100 | 100 100 Level 1 . | . . Level 2 . | . . Level 3 . | . . Level 4 . | . . Level 5 . | . . High Security . | . . Max Security . | . . Peak Influence 60 | 20 60 Initial 6 | . 6 Average 11 | 2 17 Influence Increases 175 | 20 155 Destroy 0b10 Robot/C 80 | . 80 Destroy 0b10 Robot/NC 20 | 20 . Destroy Leader 10 | . 10 Successful Hack 5 | . 5 Lose Combat Pursuer 60 | . 60 Influence Decreases 155 | 10 145 Entered New Map 4 | . 4 Time Decay 81 | 10 71 Lost Part 70 | . 70 Squads Dispatched . | . . Investigation . | . . Extermination . | . . Reinforcement . | . . Assault . | . . Garrison . | . . Intercept . | . . Searches Triggered . | . . Construction Impeded . | . . Haulers Reinforced . | . . Active Scanning Responses . | . . Cargo Convoy Interrupts . | . . Stealth | -11 -10 --------- Run | Yrd Mat Distress Signals 1 | . 1 Communications Jammed . | . . Distress Signals . | . . Times Spotted 11 | . 11 Peak Tracking Total 9 | . 9 Tactical Retreats 3 | . 3 Traps | -11 -10 ------- Run | Yrd Mat Traps Triggered . | . . Indirectly . | . . Trap Hack Attempts . | . . Triggered . | . . Disarmed . | . . Reprogrammed . | . . Reused . | . . Traps Extracted . | . . Installed . | . . Triggered . | . . Machines | -11 -10 ---------- Run | Yrd Mat Machines Disabled . | . . Max in Single Turn . | . . Machines Repaired . | . . Machines Dismantled . | . . Machines Sabotaged . | . . Overloaded Fab Kills . | . . Hacking | -11 -10 --------- Run | Yrd Mat Machines Accessed 1 | . 1 Terminals 1 | . 1 Fabricators . | . . Repair Stations . | . . Recycling Units . | . . Scanalyzers . | . . Garrison Access . | . . Total Hacks 2 | . 2 Successful 2 | . 2 Failed . | . . Catastrophic . | . . Database Lockouts . | . . Manual 1 | . 1 Terminals 2 | . 2 Fabricators . | . . Repair Stations . | . . Recycling Units . | . . Scanalyzers . | . . Garrison Access . | . . Terminal Hacks 1 | . 1 Zone Layout 1 | . 1 Fabricator Hacks . | . . Repair Station Hacks . | . . Recycling Unit Hacks . | . . Scanalyzer . | . . Garrison Access Hacks . | . . Unauthorized Hacks 1 | . 1 Terminals 1 | . 1 Botnet 1 | . 1 Fabricators . | . . Repair Stations . | . . Recycling Units . | . . Scanalyzers . | . . Garrison Access . | . . Data Cores Recovered . | . . Used . | . . Hacking Detections 1 | . 1 Full Trace Events . | . . Feedback Events . | . . Feedback Blocked . | . . Robot Schematics Acquired . | . . Robots Built . | . . Authchips . | . . Time . | . . Total Robot Build Rating . | . . Part Schematics Acquired . | . . Parts Built . | . . Authchips . | . . Time . | . . Total Part Build Rating . | . . Part Studies Acquired . | . . Parts Repaired . | . . Time . | . . Parts Recycled . | . . Recycled Matter . | . . Retrieved Matter . | . . Retrieved Components . | . . Parts Scanalyzed . | . . Part Schematics Acquired . | . . Parts Damaged . | . . Bothacking | -11 -10 ------------ Run | Yrd Mat Used RIF Installer . | . . Robots Hacked . | . . Non-combat . | . . Combat . | . . Robot Hacks Applied . | . . Relay Couplers Released . | . . Fabnet Peak Effective % . | . . Robots Rewired . | . . Allies Hacked . | . . Hacks Repelled . | . . Allies | -11 -10 -------- Run | Yrd Mat Total Allies . | . . Largest Group . | . . Highest-Rated Group . | . . Highest-Rated Ally . | . . Total Orders . | . . Ally Attacks . | . . Total Damage . | . . Kills . | . . Allies Corrupted . | . . Allies Melted . | . . Intel | -11 -10 ------- Run | Yrd Mat Active Infowar (turns) . | . . Robot Analysis Total . | . . Derelict Logs Recovered . | . . Drone Launches . | . . Drone Recoveries . | . . Exploration | -11 -10 ------------- Run | Yrd Mat Turns Passed 298 | 133 165 Spaces Moved 124 | 51 73 Core 7 | 6 1 Treads . | . . Legs 117 | 45 72 Wheels . | . . Hover . | . . Flight . | . . Fastest Speed 50 | 50 100 Average Speed 116 | 111 119 Slowest Speed 120 | 120 120 Overloaded Moves . | . . Propulsion Burnouts . | . . Robots Hopped . | . . Potential Cave-ins . | . . Cave-ins Triggered . | . . Exploration Rate (%) 12 | 5 20 Regions Visited 1 Branch Regions . Pre-discovered Areas . | . . Known Exits Taken . | . . Unknown Exits Taken 1 | 1 . Scrap Searched . | . . Spaces Dug . | . . Terrain Destroyed . | . . Melee . | . . Projectile . | . . AOE . | . . Terrain Rammed . | . . Walls Destroyed . | . . Machines Disabled . | . . Actions | -11 -10 --------- Run | Yrd Mat Total 210 | 96 114 Wait 6 | . 6 Move 123 | 50 73 Hop . | . . Pick Up 9 | 9 . Fast Attach . | . . Attach 8 | 5 3 Detach . | . . Swap 1 | . 1 Drop . | . . Fire 58 | 31 27 Melee . | . . Ram 4 | . 4 Kick 1 | 1 . Crush . | . . Escape Stasis . | . . Rewire . | . . Trap . | . . Miscellaneous . | . . Route ------- -11/Scrapyard -10/Materials (discovered 1 exit: [*Mat]) History --------- Turn | Location | Event 13 | -11/Scrapyard | Discovered new exit (range 15) 134 | -11/Scrapyard | Entered Materials 217 | -10/Materials | Discovered new exit (range 11) 272 | -10/Materials | Core integrity fell below 50% 289 | -10/Materials | Core integrity fell below 20% 299 | -10/Materials | Destroyed by G-47 Trooper with Particle Gun Last Messages --------------- Lgt. Assault Rifle temporarily disabled. K-01 Serf collects debris. Lgt. Assault Rifle destroyed. K-01 Serf collects debris. G-47 Trooper misfires. EM Pulse Gun destroyed. R-06 Scavenger collects Sml. Laser. Acquired 24 matter. R-06 Scavenger collects Aluminum Leg. K-01 Serf collects debris. Critical hit (Burn: +37). Mining Laser destroyed. Overheating: Energy bleed (-6). Slammed into G-47 Trooper. Destabilizing: System corrupted (+2). Slammed into G-47 Trooper. Destabilizing: System corrupted (+2). K-01 Serf collects debris. Slammed into G-47 Trooper. Critical hit (Burn: +37). Map ----- +----------------------------------------------------+ | ?????????????????????????????????????????????????? | | ?????????????????????????????????????????????????? | | ?????????????????????????????????????????????????? | | ?????????????????????????????????????????????????? | | ?????????????????????????????????????????????????? | | ?????????????????????????????????????????????????? | | ?????????????????????????????????????????????????? | | ?????????????????????????????????????????????????? | | ?????????????????????????????????????????????????? | | ?????????????????????????????????????????????????? | | ?????????????????????????????????????????????????? | | ?????????????????????????????????????????????????? | | ?????????????????????????????????????????????????? | | ?????????????????????????????????????????????????? | | ?????????????????????????????????????????????????? | | ?????????????????????????????????????????????????? | | ?????????????????????????????????????????????????? | | ?????????????????????????????????????????????????? | | ?????????????????????????????????????????????????? | | ?????????????????????????????????????????????????? | | ?????????????????????????????????????????????????? | | ?????????????????????????????????????????????????? | | ?????????????????????????????????????????????????? | | ?????????????????????????????????????????????????? | | ????????????????###########??????????????????????? | | ????????????????# | %@#??????????????????????? | | ????????????????# %g#??????????????????????? | | ????????????????#!! gk#??????????????????????? | | ????????????????#!! """ #??????????????????????? | | ????????????????#!! """r#??????????????????????? | | ?????# # ## """%#??????????????????????? | | ?????# # ## #??????????????????????? | | ?????# + ## #??????????????????????? | | ?##### ###+######+#############+####???????????? | | ?# #???????????? | | ?# < #???????????? | | ?# #???????????? | | ## ##############+##### ########?????????????? | | #???????# ## #????????????????????? | | ######### ## #????????????????????? | | "" ##= # """"""" ## #????????????????????? | | "" ## """# """"""" ## #????????????????????? | | "" ## ! """# """"""" ## #????????????????????? | | ## """# """"""" ## #????????????????????? | | ## # """"""" ## #????????????????????? | | "" ## "T" # ## #????????????????????? | | "" #######+####+####### ##???????????????????? | | "" ####### # " # ! ##+## ????????????? | | # """ """ # #???????????? | | # """ """ / " #???????????? | +----------------------------------------------------+ Best States ------------- Heat Dissipation 25 Energy Generation 10 Energy Capacity 125 Matter Stores 300 Matter Capacity 300 Sight Range 16 Terrain Scan Density 10 Evasion (%) 55 Item Schematics ----------------- None Robot Schematics ------------------ None Fabricated ------------ Nothing Repaired ---------- Nothing Studied --------- None Alien Tech Used ----------------- None Achievements -------------- None Challenges ------------ None Game ------ Seed AdvancedTerrabombAutocannon Manual? 0 Play Time 00:04:17 Cumulative 71.4 hours Start 2026.02.04 @ 17:35:00 End 2026.02.04 @ 17:37:35 Sessions 1 Manual Loads 0 Difficulty Rogue Special Mode None Game No. 32 Rogue 2 Adventurer 30 Explorer 0 Win Type - Total 1 Types 1/0/0/0/0/0/0/0/0/0 Lore% 26 Gallery% 31 Achievement% 31 Wizard Run 0 Options --------- Layout 2 ASCII 0 Keyboard 0 Movement Numpad Keybinds 0 Fullscreen 1 Font 16/SmallcapsGlow Map View 25x24 Zoom Use 75% Tactical HUD 0 Map Filters NONE Filters NONE Steam 1 RUN: a4401fd4-4799-430c-9425-e88eb8ad5292